bitfinex/quotes_ETHUSD_20250424
["timestamp","ask_amount","ask_price","bid_price","bid_amount"]
[1745502941745,5.72062998,1748.1,1747.8,5.8973]
[1745502942041,5.72115109,1747.9,1747.6,0.8113]
[1745502942226,11.44256645,1747.9,1747.6,0.8113]
[1745502942542,5.72172389,1747.8,1747.5,5.122]
[1745502942745,5.7217208,1747.8,1747.5,5.122]
[1745502944244,5.72186217,1747.7,1747.5,5.122]
[1745502944750,5.72164733,1747.8,1747.5,5.122]
[1745502944751,11.44340524,1747.8,1747.5,5.122]
[1745502945060,5.72185494,1747.7,1747.4,0.7875]
[1745502945351,5.72231804,1747.6,1747.3,5.122]
[1745502945718,5.72180845,1747.7,1747.3,10.84505171]
[1745502945917,5.72180845,1747.7,1747.3,10.84492895]
[1745502946138,5.72164481,1747.8,1747.4,5.72272733]
[1745502946345,5.72194087,1747.7,1747.3,10.84492895]
[1745502947346,1.92365857,1747.7,1747.3,5.122]
[1745502947549,5.72263739,1747.5,1747.3,5.122]
[1745502947755,4.92365857,1747.7,1747.1,0.7685]
[1745502947911,5.72228421,1747.6,1747.2,5.72317476]
[1745502948228,1.06459428,1747.6,1747.1,6.49209312]
[1745502948437,5.7227838,1747.5,1747.1,0.7685]
[1745502948726,5.72272086,1747.5,1747.1,0.7685]
[1745502949046,5.72272086,1747.5,1747.1,12.21588861]
[1745502949207,5.72272086,1747.5,1747.1,6.4921346]
[1745502949539,11.44541915,1747.5,1747.1,6.4921346]
[1745502949753,5.72269973,1747.5,1747.1,6.4921346]
[1745502950109,3.7793,1747.7,1747.1,1.92991346]
[1745502950430,3.7793,1747.7,1747.1,0.7685]
[1745502950431,5.72285168,1747.4,1747.1,0.7685]
[1745502950634,5.72330064,1747.3,1747.1,0.7685]
[1745502951013,0.8332,1747.9,1747.2,5.07636353]
[1745502951211,6.55447069,1747.9,1747.4,11.44517548]
[1745502951448,6.55447069,1747.9,1747.4,5.72256616]
[1745502951612,12.27590801,1747.9,1747.4,5.72256616]
[1745502951812,6.55447069,1747.9,1747.5,5.72240617]
[1745502952133,12.2759074,1747.9,1747.4,6.86711783]
[1745502952445,5.72158687,1747.8,1747.4,6.86711783]
[1745502952616,6.55447069,1747.9,1747.4,6.86711234]
[1745502952811,12.27590243,1747.9,1747.4,12.58974615]
[1745502953012,1.22759024,1747.8,1747.1,0.7685]
[1745502953344,5.7218058,1747.7,1747.1,0.7685]
[1745502953513,5.72257721,1747.5,1747.1,6.49211536]
[1745502954225,6.53991856,1747.6,1747.1,6.49206729]
[1745502954517,6.53991856,1747.6,1747.2,5.7234386]
[1745502954954,6.53991856,1747.6,1747.2,5.72323709]
[1745502955460,8.06610779,1747.6,1747.2,5.72323709]
[1745502955822,5.72258095,1747.5,1747.1,11.44717762]
[1745502956024,5.72258095,1747.5,1747.0,5.123]
[1745502956025,5.72301632,1747.4,1747.0,5.123]
[1745502956254,0.57230163,1747.4,1747.1,5.723628]
[1745502956459,12.26231915,1747.6,1747.1,5.72361552]
[1745502956613,5.72251489,1747.5,1747.1,5.72361552]
[1745502957577,5.72251489,1747.5,1747.1,5.72376474]
[1745502957881,6.53998983,1747.6,1747.2,5.72334019]
[1745502958179,0.8177,1747.6,1747.2,6.48352157]
[1745502958478,0.8177,1747.6,1747.3,5.72307946]
[1745502958775,8.72189025,1747.7,1747.2,6.48352157]
[1745502958948,4.46531903,1747.7,1747.3,6.75438395]
[1745502959146,10.18716557,1747.7,1747.3,6.75438395]
[1745502959469,10.18716557,1747.7,1747.3,12.47730135]
[1745502959639,10.18716557,1747.7,1747.3,6.75436185]
[1745502959835,6.52991667,1747.8,1747.3,1.03144445]
[1745502960040,0.8083,1747.8,1747.5,5.72244174]
[1745502960236,0.3174669,1747.9,1747.6,5.72184113]
[1745502960584,0.3174669,1747.9,1747.8,5.72147843]
[1745502960893,10.84213864,1748.6,1747.8,5.72147843]
[1745502960894,0.29845245,1748.4,1748.0,5.72062999]
[1745502961031,5.71899686,1748.6,1747.8,6.51735507]
[1745502961032,6.80321072,1748.6,1748.2,5.71994289]
[1745502961238,1.08421386,1748.6,1748.2,0.7789]
[1745502961577,5.71936544,1748.5,1748.2,0.7789]
[1745502961775,5.71936544,1748.5,1748.1,5.72025248]
[1745502961949,5.71996324,1748.3,1748.0,0.7522]
[1745502962670,5.72001188,1748.3,1747.8,11.63775748]
[1745502962972,5.72001188,1748.3,1747.9,5.72095555]
[1745502963170,6.94278276,1748.3,1747.9,5.72095555]
[1745502963538,5.72016931,1748.2,1747.6,0.7754]
[1745502963739,5.72132385,1747.9,1747.4,11.62007423]
[1745502964374,5.72152468,1747.8,1747.4,5.8974]
[1745502964546,5.72152468,1747.8,1747.4,11.62014247]
[1745502966676,6.55328211,1748.0,1747.5,5.72221434]
[1745502966878,6.55328211,1748.0,1747.6,5.72201278]
[1745502967180,5.72117139,1747.9,1747.5,5.72221434]
[1745502967546,6.55328211,1748.0,1747.5,5.72221434]
[1745502967742,5.72127296,1747.9,1747.5,7.05760609]
[1745502967947,5.72169261,1747.8,1747.4,5.8974]
[1745502968161,5.72169261,1747.8,1747.4,11.62007086]
[1745502968359,5.72169261,1747.8,1747.4,11.6199772]
[1745502968757,5.72197919,1747.7,1747.4,5.122]
[1745502968960,6.55061794,1747.6,1747.4,5.122]
[1745502969177,6.55061794,1747.6,1747.2,6.53017862]
[1745502969384,6.55060257,1747.6,1747.2,0.8068]
[1745502969682,6.55060257,1747.6,1747.2,6.53023132]
[1745502970085,0.8282,1747.6,1747.2,8.26768754]
[1745502970284,6.52035765,1747.8,1747.4,5.72278591]
[1745502970460,6.83782993,1747.8,1747.3,5.72292694]
[1745502970655,1.11617228,1747.8,1747.4,11.4453537]
[1745502970861,1.11617228,1747.8,1747.4,6.86711015]
[1745502971180,0.31747228,1747.8,1747.5,5.72244185]
[1745502971359,6.03884988,1747.9,1747.5,5.72244185]
[1745502971974,6.03884988,1747.9,1747.4,11.44518648]
[1745502972282,5.7215068,1747.8,1747.4,5.72257325]
[1745502972595,5.72193453,1747.7,1747.3,5.72288319]
[1745502972770,5.72193453,1747.7,1747.3,7.12193881]
[1745502972976,5.7215068,1747.8,1747.3,7.12193881]
[1745502973184,6.51968138,1748.0,1747.5,5.72216862]
[1745502973376,5.72119197,1747.9,1747.5,6.29438548]
[1745502974062,5.72119197,1747.9,1747.4,5.72258963]
[1745502974258,5.72148456,1747.8,1747.5,5.72242612]
[1745502974487,5.72148456,1747.8,1747.4,5.72258963]
[1745502974691,5.72148456,1747.8,1747.4,11.44514258]
[1745502974865,9.51961115,1748.0,1747.5,5.72246062]
[1745502975194,6.49092206,1748.2,1747.8,6.48500117]
[1745502975351,0.7707,1748.2,1747.8,6.48493093]
[1745502975551,12.19499067,1748.4,1748.0,5.72080233]
[1745502975857,0.7555,1748.4,1747.8,0.7637]
[1745502975999,5.72069353,1748.1,1747.8,0.7637]
[1745502976203,5.72069353,1748.1,1747.6,5.72190612]
[1745502976363,5.72069353,1748.1,1747.7,5.7217729]
[1745502977065,5.72069353,1748.1,1747.7,5.72163685]
[1745502977298,11.44151181,1748.1,1747.7,5.72163685]
[1745502977500,5.7210043,1748.0,1747.6,7.68082007]
[1745502977862,6.49849353,1748.1,1747.6,7.68082007]
[1745502978064,6.49833984,1748.1,1747.7,6.48968538]
[1745502978770,6.49833984,1748.1,1747.8,5.72136228]
[1745502978771,0.7778,1748.1,1747.8,5.72136228]
[1745502978962,0.7778,1748.1,1747.8,5.72144274]
[1745502979158,12.27123654,1748.3,1747.8,5.72124335]
[1745502979392,5.72023324,1748.2,1747.8,6.37017589]
[1745502979621,5.72023324,1748.2,1747.8,6.37017541]
[1745502979790,5.72023324,1748.2,1747.8,12.09144559]
[1745502980117,0.8311,1748.3,1748.0,5.72079866]
[1745502980426,14.73720191,1748.5,1748.1,5.72035382]
[1745502980607,5.71976649,1748.4,1748.0,5.72082379]
[1745502981114,5.71976649,1748.4,1748.0,5.72061081]
[1745502983014,11.4395299,1748.4,1748.0,5.72061081]
[1745502984097,5.71985645,1748.3,1748.0,5.72061081]
[1745502984622,5.71985645,1748.3,1747.9,17.34873995]
[1745502984789,5.71985645,1748.3,1747.9,19.1485072]
[1745502984986,6.50746844,1748.2,1747.9,5.122]
[1745502985318,12.22790764,1748.2,1747.8,5.72138081]
[1745502985509,5.72051629,1748.1,1747.8,5.72138081]
[1745502985710,0.7871,1748.2,1747.8,5.72134845]
[1745502985915,5.71996856,1748.3,1747.9,5.72115109]
[1745502986117,6.53543438,1748.4,1748.0,5.72074777]
[1745502986425,6.83486692,1748.6,1748.1,6.54439234]
[1745502986612,12.25557283,1748.6,1748.2,5.72011076]
[1745502986789,5.71920646,1748.5,1748.2,5.72011076]
[1745502987285,6.53638915,1748.6,1748.2,5.72011076]
[1745502987502,5.71928446,1748.5,1748.1,6.54439234]
[1745502987703,5.71928446,1748.5,1748.2,0.65443923]
[1745502987904,5.71928446,1748.5,1748.1,6.54439234]
[1745502988092,5.71928446,1748.5,1748.1,6.54437012]
[1745502988921,6.53641398,1748.6,1748.2,5.72004097]
[1745502989688,0.8174,1748.6,1748.2,5.71996773]
[1745502989891,0.8174,1748.6,1748.3,5.71973737]
[1745502990123,0.8174,1748.6,1748.4,5.71940233]
[1745502990324,0.8174,1748.6,1748.3,1.14397051]
[1745502990527,0.784,1748.8,1748.5,5.71888704]
[1745502990862,6.5022228,1748.8,1748.4,5.7194125]
[1745502991132,6.5022228,1748.8,1748.4,6.97771998]
[1745502991297,12.22068873,1748.8,1748.4,6.97771998]
[1745502991497,5.71858934,1748.7,1748.3,5.71963]
[1745502992628,6.5022228,1748.8,1748.4,5.7192284]
[1745502992999,5.71863191,1748.7,1748.3,5.71963753]
[1745502993193,5.71863191,1748.7,1748.2,5.7199766]
[1745502993415,5.71968737,1748.4,1748.0,5.121]
[1745502993607,5.71968737,1748.4,1748.0,10.84162017]
[1745502993936,11.43949849,1748.4,1748.0,10.84180652]
[1745502994092,11.43949849,1748.4,1748.0,5.121]
[1745502994428,5.72004577,1748.3,1748.0,5.121]
[1745502994642,5.71968737,1748.4,1748.0,5.121]
[1745502994845,5.720005,1748.3,1748.0,5.121]
[1745502995213,6.55116449,1748.2,1748.0,5.121]
[1745502996028,0.8309,1748.2,1748.0,5.121]
[1745502996230,6.55109801,1748.2,1748.0,5.121]
[1745502996833,5.72049653,1748.1,1748.0,5.121]
[1745502997149,5.72049653,1748.1,1747.7,12.39540781]
[1745502997357,6.55109801,1748.2,1747.9,5.72095186]
[1745502997358,0.8309,1748.2,1747.9,5.72095186]
[1745502997654,0.8309,1748.2,1748.0,5.7208124]
[1745502997861,5.71977619,1748.4,1748.0,5.7208124]
[1745502997862,6.54377619,1748.4,1748.0,5.7208124]
[1745502998033,12.26353512,1748.4,1748.0,5.7208124]
[1745502998232,5.71986265,1748.3,1747.9,5.72093399]
[1745502998541,6.54375893,1748.4,1747.9,5.72115109]
[1745502998542,0.824,1748.4,1747.9,5.72115109]
[1745502998753,0.8288,1748.6,1748.3,5.71981262]
[1745502998953,0.8288,1748.6,1748.1,6.15077601]
[1745502999239,0.8288,1749.0,1748.6,5.7187246]
[1745502999443,6.54646127,1749.0,1748.6,5.7187246]
[1745503000117,5.71793358,1748.9,1748.5,10.83912792]
[1745503000314,5.71840506,1748.8,1748.5,5.12]
[1745503000541,11.4368713,1748.8,1748.5,5.12]
[1745503000737,5.71840506,1748.8,1748.5,5.12]
[1745503000940,5.71804053,1748.9,1748.5,10.8391655]
[1745503001142,5.71832752,1748.8,1748.5,5.12]
[1745503002444,5.71864875,1748.7,1748.5,5.12]
[1745503004055,5.7184226,1748.8,1748.5,5.12]
[1745503004354,5.71807891,1748.9,1748.5,10.83904858]
[1745503004958,5.71826813,1748.8,1748.5,5.12]
[1745503005140,6.54655065,1749.0,1748.5,5.12]
[1745503005342,6.3727055,1748.9,1748.5,10.83912825]
[1745503005653,5.71837006,1748.8,1748.5,5.12]
[1745503006328,0.8288,1749.0,1748.6,5.71865874]
[1745503006858,6.5466118,1749.0,1748.6,5.71865874]
[1745503007356,5.71766142,1749.0,1748.6,5.71863063]
[1745503008449,5.71768884,1749.0,1748.6,5.71863063]
[1745503008650,5.71768884,1749.0,1748.6,11.43727051]
[1745503008850,5.71768884,1749.0,1748.6,5.71863063]
[1745503009529,5.71768884,1749.0,1748.6,11.43725875]
[1745503009730,5.71768884,1749.0,1748.6,7.5541616]
[1745503010266,5.71768884,1749.0,1748.6,13.27278878]
[1745503010463,5.71768884,1749.0,1748.6,7.55416066]
[1745503011269,5.71768884,1749.0,1748.6,5.71862718]
[1745503011565,5.71790043,1748.9,1748.6,5.71862718]
[1745503011882,6.47441789,1748.8,1748.5,5.8873]
[1745503012033,7.69364972,1748.8,1748.5,5.12]
[1745503012236,7.69364972,1748.8,1748.5,10.83916436]
[1745503012570,6.4738474,1749.0,1748.6,5.7187245]
[1745503012946,12.19170065,1749.0,1748.6,5.7187245]
[1745503013563,5.71788236,1748.9,1748.6,5.7187245]
[1745503014775,6.4738474,1749.0,1748.6,5.7187245]
[1745503014979,12.19167384,1749.0,1748.6,5.7187245]
[1745503015275,5.71792191,1748.9,1748.6,5.71882515]
[1745503015452,6.4738474,1749.0,1748.6,5.71882515]
[1745503015655,6.4738474,1749.0,1748.6,5.71865683]
[1745503015849,0.7562,1749.0,1748.7,5.71832246]
[1745503016050,6.03547323,1749.1,1748.7,5.7183127]
[1745503016286,0.31809704,1749.1,1749.0,5.71755288]
[1745503016476,0.31809704,1749.1,1748.7,6.94229564]
[1745503016477,0.31809704,1749.1,1748.9,5.71764009]
[1745503016786,0.31809704,1749.1,1748.9,17.31180568]
[1745503017088,0.31809704,1749.3,1749.0,5.71746013]
[1745503017240,6.03476179,1749.3,1748.9,11.59417742]
[1745503017441,6.03476179,1749.3,1748.9,13.32537373]
[1745503017682,5.71666475,1749.3,1748.9,19.04303162]
[1745503017881,5.71666475,1749.3,1748.9,13.32537373]
[1745503018183,7.50642216,1749.4,1748.9,5.8765]
[1745503018388,11.43362474,1749.3,1748.9,10.83676409]
[1745503018684,5.71676211,1749.3,1748.9,10.83676409]
[1745503018986,13.22312625,1749.4,1748.9,10.83667062]
[1745503019143,7.50659842,1749.4,1748.9,10.83667062]
[1745503019488,0.7594,1749.4,1749.1,5.71711837]
[1745503019873,5.71602874,1749.5,1749.1,5.7170651]
[1745503020065,1.03077601,1749.5,1749.0,6.50449801]
[1745503020381,5.71668074,1749.3,1749.0,0.7871]
[1745503020583,5.71668074,1749.3,1748.9,10.83668436]
[1745503020768,5.71668074,1749.3,1748.9,12.5700436]
[1745503021089,6.51418074,1749.3,1748.9,12.5700436]
[1745503021278,6.51418074,1749.3,1749.0,5.71733724]
[1745503021279,0.7975,1749.3,1749.0,5.71733724]
[1745503021478,0.7975,1749.3,1749.0,5.71739437]
[1745503021676,0.7975,1749.3,1749.0,5.71741766]
[1745503021987,5.71626619,1749.4,1749.0,7.17984583]
[1745503022191,5.71626619,1749.4,1748.9,16.55435154]
[1745503022192,5.7167005,1749.3,1748.9,16.55435154]
[1745503022390,5.7167005,1749.3,1748.9,10.83666163]
[1745503022575,5.7167005,1749.3,1748.9,10.83664928]
[1745503022786,12.20595275,1749.5,1749.0,5.71733425]
[1745503022988,12.20596112,1749.5,1749.1,5.71715676]
[1745503023201,0.7737,1749.5,1749.3,5.71646079]
[1745503023404,5.71603446,1749.5,1749.1,13.26757345]
[1745503023569,5.71585705,1749.6,1749.2,5.71672898]
[1745503023772,5.71560339,1749.6,1749.2,11.43347384]
[1745503023976,6.54041655,1749.7,1749.2,11.43340861]
[1745503024178,12.25593201,1749.7,1749.2,12.76009707]
[1745503024510,6.54041655,1749.7,1749.3,5.71654794]
[1745503025062,12.25592401,1749.7,1749.3,5.71654794]
[1745503025294,6.54041655,1749.7,1749.3,5.71654794]
[1745503025958,5.71541655,1749.7,1749.4,0.8205]
[1745503026258,5.71506709,1749.8,1749.4,7.19033709]
[1745503026458,5.71506709,1749.8,1749.4,7.19032796]
[1745503026881,6.01313608,1749.9,1749.4,7.19026448]
[1745503027080,0.8258,1750.0,1749.4,1.47420479]
[1745503027394,5.71478511,1749.9,1749.4,7.19028758]
[1745503027602,5.71478511,1749.9,1749.5,0.71902876]
[1745503027960,5.7149712,1749.8,1749.5,0.71902876]
[1745503028198,5.7149712,1749.8,1749.4,1.47420479]
[1745503028534,5.7149712,1749.8,1749.4,7.19041067]
[1745503028701,5.71477266,1749.9,1749.5,5.71574146]
[1745503029058,5.71495984,1749.8,1749.4,7.19029993]
[1745503030799,5.71495984,1749.8,1749.4,7.19026343]
[1745503031011,5.71477266,1749.9,1749.4,7.19026343]
[1745503031207,5.7149426,1749.8,1749.4,7.19026343]
[1745503032809,0.8258,1750.0,1749.5,5.7157979]
[1745503033008,5.7147588,1749.9,1749.5,5.7157979]
[1745503033203,5.7147588,1749.9,1749.5,11.43151278]
[1745503033426,5.7147588,1749.9,1749.5,5.71571488]
[1745503033742,6.01242409,1750.1,1749.7,5.71501342]
[1745503034039,5.71312892,1750.4,1750.0,5.7141579]
[1745503034247,5.71331326,1750.3,1749.9,5.71444252]
[1745503034389,5.71331882,1750.3,1749.9,5.71444252]
[1745503034908,5.71331882,1750.3,1749.9,5.71440344]
[1745503035108,6.48802203,1750.4,1750.0,7.10662353]
[1745503035294,5.71312203,1750.4,1750.0,7.10662353]
[1745503035604,12.53319742,1750.6,1750.1,5.7138579]
[1745503035813,0.8099,1750.6,1750.2,5.71353546]
[1745503036052,6.52181474,1750.8,1750.3,5.7131737]
[1745503036192,5.71222868,1750.7,1750.2,12.24800281]
[1745503036390,5.71222868,1750.7,1750.3,1.22480028]
[1745503036607,5.71222868,1750.7,1750.3,6.93810342]
[1745503036803,6.52175613,1750.8,1750.4,5.71282804]
[1745503037008,0.8099,1750.8,1750.4,5.71282804]
[1745503037304,6.52158533,1750.8,1750.4,5.71282804]
[1745503037514,5.71203162,1750.7,1750.4,1.26507591]
[1745503037711,5.712003,1750.7,1750.3,5.7131308]
[1745503038032,5.712003,1750.7,1750.2,12.2480416]
[1745503038195,5.71247264,1750.6,1750.2,0.8211]
[1745503038401,5.71247264,1750.6,1750.2,6.53467705]
[1745503038652,5.71110763,1751.0,1750.5,5.71253702]
[1745503038956,6.48024633,1751.0,1750.6,7.05429068]
[1745503039100,6.74086159,1751.3,1750.6,1.3420537]
[1745503039101,6.00827809,1751.3,1750.6,1.3420537]
[1745503039409,5.71097585,1751.1,1750.6,7.05426324]
[1745503039607,5.71094867,1751.1,1750.6,7.05426324]
[1745503039814,5.71103611,1751.0,1750.6,7.05426324]
[1745503041046,5.71134953,1750.9,1750.5,10.82647739]
[1745503042834,5.71136369,1750.9,1750.5,10.82642704]
[1745503043005,5.71103611,1751.0,1750.5,10.82642704]
[1745503043334,5.71139087,1750.9,1750.5,10.82642704]
[1745503043638,5.71139087,1750.9,1750.5,5.114]
[1745503043834,5.71168914,1750.8,1750.5,5.114]
[1745503044033,6.50329087,1750.9,1750.5,11.99198427]
[1745503044914,6.50329087,1750.9,1750.5,6.2794548]
[1745503045135,5.71213806,1750.7,1750.5,5.114]
[1745503045634,6.5034335,1750.9,1750.5,5.114]
[1745503045844,6.5034335,1750.9,1750.5,10.82649428]
[1745503046203,6.5034335,1750.9,1750.5,5.114]
[1745503046830,5.71174291,1750.8,1750.5,5.114]
[1745503048111,6.5034335,1750.9,1750.5,5.114]
[1745503048438,6.50346043,1750.9,1750.5,11.99206488]
[1745503048630,5.71111641,1751.0,1750.6,5.71214532]
[1745503049339,5.71159065,1750.9,1750.5,11.99193548]
[1745503049540,5.71159065,1750.9,1750.5,10.8264804]
[1745503049745,5.71159065,1750.9,1750.5,5.114]
[1745503049930,5.71168222,1750.8,1750.5,5.114]
[1745503050711,11.42360715,1750.8,1750.5,5.114]
[1745503050936,5.71168222,1750.8,1750.5,5.114]
[1745503053254,5.71116755,1751.0,1750.5,5.114]
[1745503053545,5.7117022,1750.8,1750.5,5.114]
[1745503053748,11.42364573,1750.8,1750.5,5.114]
[1745503053952,6.5015022,1750.8,1750.5,5.114]
[1745503054127,5.71209459,1750.7,1750.5,5.114]
[1745503054453,6.5015022,1750.8,1750.5,5.114]
[1745503054818,7.76519239,1750.8,1750.5,5.114]
[1745503055023,5.7121294,1750.7,1750.5,5.114]
[1745503055553,12.21345665,1750.8,1750.5,5.114]
[1745503055736,0.7898,1750.8,1750.5,10.82654542]
[1745503056058,11.84703538,1750.9,1750.5,5.114]
[1745503056059,0.42391657,1750.9,1750.5,5.114]
[1745503056253,5.7116071,1750.9,1750.5,5.114]
[1745503056560,5.71159776,1750.9,1750.5,10.82644117]
[1745503056763,11.42320414,1750.9,1750.5,12.56316178]
[1745503056920,5.71159776,1750.9,1750.5,12.56316178]
[1745503057625,5.71167797,1750.8,1750.5,12.56316178]
[1745503057840,5.71167797,1750.8,1750.5,6.85072061]
[1745503058270,5.71167797,1750.8,1750.5,5.114]
[1745503058433,5.71208868,1750.7,1750.3,5.71313472]
[1745503058640,6.51295778,1750.6,1750.3,5.11]
[1745503059075,5.71267415,1750.5,1750.3,5.11]
[1745503059426,6.51286055,1750.6,1750.3,5.11]
[1745503059629,6.52852751,1750.8,1750.4,6.46537541]
[1745503059862,6.52852751,1750.8,1750.4,0.7525]
[1745503060169,5.71200763,1750.7,1750.4,6.46545061]
[1745503060370,5.71200763,1750.7,1750.4,0.7525]
[1745503060539,12.24044945,1750.8,1750.4,0.7525]
[1745503060732,6.52852751,1750.8,1750.4,6.46535724]
[1745503061070,12.24051362,1750.8,1750.4,6.46535724]
[1745503061361,0.29809177,1751.0,1750.4,0.7525]
[1745503061661,5.71112056,1751.0,1750.6,5.71231633]
[1745503062021,5.71138705,1750.9,1750.5,5.7124308]
[1745503062221,5.71174299,1750.8,1750.4,6.46529892]
[1745503062439,5.71174299,1750.8,1750.4,7.83414174]
[1745503062687,6.0296061,1750.9,1750.5,5.7125944]
[1745503063189,11.74121265,1750.9,1750.5,5.7125944]
[1745503063342,11.4229936,1750.9,1750.5,5.7125944]
[1745503063545,5.71138705,1750.9,1750.5,5.71247862]
[1745503063767,5.71138705,1750.9,1750.5,6.49586076]
[1745503063984,1.85277601,1750.9,1750.3,5.11]
[1745503064293,6.53445968,1750.6,1750.3,5.11]
[1745503064467,0.822,1750.6,1750.3,10.82310866]
[1745503064647,0.822,1750.6,1750.3,16.53621732]
[1745503064845,0.822,1750.6,1750.4,5.71288762]
[1745503065153,0.822,1750.6,1750.3,10.82310866]
[1745503065154,0.31858774,1750.6,1750.3,11.62440866]
[1745503065359,6.03097892,1750.6,1750.3,5.11]
[1745503065882,5.71215769,1750.7,1750.3,10.8232542]
[1745503067588,0.31893159,1750.6,1750.3,10.8232542]
[1745503067746,0.31893159,1750.6,1750.3,12.47692099]
[1745503068875,5.71203933,1750.7,1750.3,12.47692099]
[1745503069088,5.71203933,1750.7,1750.3,10.8232542]
[1745503069588,11.42429622,1750.7,1750.3,10.82308413]
[1745503069801,5.7123492,1750.6,1750.3,5.11]
[1745503070220,5.71203933,1750.7,1750.3,10.82327756]
[1745503070677,0.3189992,1750.6,1750.3,10.82327756]
[1745503070879,0.3189992,1750.6,1750.3,12.47695347]
[1745503071081,0.3189992,1750.6,1750.3,18.19005064]
[1745503071310,6.46933412,1750.8,1750.4,5.71294535]
[1745503072320,0.31902051,1750.7,1750.4,5.71294535]
[1745503072814,6.46933412,1750.8,1750.4,5.71294535]
[1745503073643,5.71207057,1750.7,1750.3,5.11]
[1745503073816,5.71292103,1750.5,1750.3,5.11]
[1745503073982,6.48792103,1750.5,1750.3,5.11]
[1745503074975,6.48768902,1750.5,1750.3,5.11]
[1745503075814,6.48768902,1750.5,1750.1,6.51502323]
[1745503076487,0.775,1750.5,1750.1,6.51502323]
[1745503076689,0.775,1750.5,1750.2,5.71357397]
[1745503076989,0.7849,1750.7,1750.3,5.71310984]
[1745503077419,6.49699051,1750.7,1750.3,5.71310984]
[1745503077823,0.31918085,1750.6,1750.3,5.71310984]
[1745503078215,6.03160922,1750.6,1750.2,10.82351061]
[1745503078410,6.03160922,1750.6,1750.2,12.73131105]
[1745503078744,0.31918085,1750.5,1750.2,12.73131105]
[1745503078891,6.03184438,1750.5,1750.2,7.01780044]
[1745503079292,5.71266353,1750.5,1750.2,7.01780044]
[1745503080414,5.71242837,1750.6,1750.2,10.8235395]
[1745503080599,11.42504024,1750.6,1750.2,10.8235395]
[1745503080908,0.31920755,1750.5,1750.2,10.8235395]
[1745503081829,5.71242837,1750.6,1750.2,10.8235395]
[1745503082528,5.71242837,1750.6,1750.3,5.71329827]
[1745503083039,1.06979988,1750.9,1750.5,5.71253271]
[1745503083203,5.71117813,1751.0,1750.6,5.71223212]
[1745503083811,6.50177456,1750.8,1750.4,6.49331596]
[1745503083996,0.7899,1750.8,1750.4,0.7805]
[1745503084199,11.42455607,1750.7,1750.3,5.71314391]
[1745503084414,5.71248155,1750.6,1750.2,11.57446679]
[1745503084618,5.71248155,1750.6,1750.2,17.28791818]
[1745503084890,5.71248155,1750.6,1750.2,11.57445139]
[1745503085091,5.71248155,1750.6,1750.2,5.861]
[1745503085327,5.71234126,1750.6,1750.2,7.08933871]
[1745503085506,5.71217263,1750.7,1750.2,12.80271956]
[1745503085690,11.42492968,1750.6,1750.2,12.80271956]
[1745503085894,5.71236068,1750.6,1750.2,18.51616649]
[1745503086106,5.71236068,1750.6,1750.2,12.80271956]
[1745503086826,6.48160091,1750.7,1750.2,5.11]
[1745503087029,5.71255755,1750.6,1750.2,10.82362157]
[1745503087219,6.48180649,1750.7,1750.2,10.82362157]
[1745503087530,0.31950166,1750.5,1750.3,5.71329242]
[1745503087744,0.31950166,1750.5,1750.4,6.46297989]
[1745503087895,0.31950166,1750.5,1750.4,7.78368472]
[1745503088088,0.31950166,1750.5,1750.4,2.07070483]
[1745503088334,0.31950166,1750.5,1750.3,5.71306717]
[1745503088535,1.15010166,1750.7,1750.4,5.71297709]
[1745503089229,1.15010166,1750.7,1750.3,5.71306717]
[1745503089407,0.8306,1750.7,1750.3,5.71306717]
[1745503089734,6.54268302,1750.7,1750.2,11.57344366]
[1745503089905,5.71233569,1750.6,1750.2,5.86]
[1745503090104,6.03195627,1750.6,1750.2,10.82350986]
[1745503090504,0.31952375,1750.6,1750.2,10.82347755]
[1745503090710,6.03185781,1750.6,1750.3,5.71326239]
[1745503090910,0.31952375,1750.6,1750.2,10.82345582]
[1745503091113,5.71242368,1750.6,1750.2,18.19066232]
[1745503091408,5.71242368,1750.6,1750.2,12.47719643]
[1745503091609,5.71242368,1750.6,1750.2,18.19062205]
[1745503091836,0.31947711,1750.5,1750.2,12.47716623]
[1745503092333,5.71242368,1750.6,1750.2,12.47716623]
[1745503093050,5.71267524,1750.5,1750.2,5.11]
[1745503093340,5.71372747,1750.2,1749.8,6.50694403]
[1745503093500,5.71330629,1750.3,1749.9,5.71450405]
[1745503093897,1.11289204,1750.4,1749.8,5.9001]
[1745503094126,5.71345576,1750.3,1749.9,5.71451738]
[1745503094315,6.0330478,1750.3,1749.9,5.71451738]
[1745503094939,6.0330478,1750.3,1749.9,7.44733901]
[1745503095136,5.71345576,1750.3,1749.9,7.44733901]
[1745503095642,11.42707549,1750.3,1749.9,7.44733901]
[1745503095847,0.7933,1750.4,1749.9,1.73295245]
[1745503096031,0.7933,1750.4,1750.1,5.71384787]
[1745503096339,6.50631366,1750.4,1750.0,5.71405514]
[1745503096544,6.50631366,1750.4,1750.0,11.42813641]
[1745503096748,5.71286561,1750.5,1750.1,6.52232624]
[1745503096920,11.42576933,1750.5,1750.1,6.52232624]
[1745503097118,0.31937576,1750.4,1750.1,6.52232624]
[1745503097348,0.31937576,1750.4,1750.1,7.74597811]
[1745503097860,0.31937576,1750.4,1750.2,5.7133239]
[1745503098006,0.31937576,1750.4,1750.3,5.71330629]
[1745503099142,0.31937576,1750.4,1750.2,5.7133239]
[1745503099449,0.31937576,1750.4,1750.2,11.42675393]
[1745503099740,0.31937576,1750.5,1750.3,1.14267539]
[1745503099946,6.03213644,1750.5,1750.1,7.74596307]
[1745503102152,0.7691,1750.4,1750.1,5.71391129]
[1745503102453,0.7691,1750.4,1750.2,5.71358642]
[1745503102626,6.49904837,1750.6,1750.2,5.71358642]
[1745503102830,0.31943737,1750.5,1750.2,5.71358642]
[1745503103525,6.49904837,1750.6,1750.2,5.71358642]
[1745503103712,6.49904837,1750.6,1750.2,1.98105572]
[1745503103914,12.21164146,1750.6,1750.2,7.69463079]
[1745503104215,5.71271237,1750.5,1750.2,1.98105572]
[1745503104652,0.31942804,1750.4,1750.2,1.98105572]
[1745503105016,6.03215657,1750.5,1750.2,1.98105572]
[1745503105211,0.31942804,1750.5,1750.2,1.98105572]
[1745503105448,0.31942804,1750.5,1750.2,7.69460452]
[1745503105653,0.31942804,1750.5,1750.2,1.98105572]
[1745503105823,5.71288235,1750.5,1750.2,1.98105572]
[1745503106220,5.71299901,1750.4,1750.2,1.98105572]
[1745503106421,5.71299901,1750.4,1750.2,1.17615572]
[1745503106739,5.71299901,1750.4,1750.0,10.82209733]
[1745503108156,0.7866,1750.6,1750.0,5.108]
[1745503108363,6.5236094,1750.3,1750.0,5.108]
[1745503108559,11.42633564,1750.4,1750.0,5.108]
[1745503109259,5.71311027,1750.4,1750.0,10.82219524]